lending/lending_fUSD_20260206
["ID","MTS","AMOUNT","RATE_DAILY","PERIOD"]
[404671095,1770407445089,-500.0,0.00013698,2]
[404671096,1770407445098,-500.0,0.00013698,2]
[404671097,1770407445108,-500.0,0.00013698,2]
[404671098,1770407445119,-500.0,0.00013698,2]
[404671099,1770407445130,-500.0,0.00013698,2]
[404671100,1770407445140,-500.0,0.00013698,2]
[404671101,1770407445150,-500.0,0.00013698,2]
[404671102,1770407445160,-500.0,0.00013698,2]
[404671103,1770407445170,-532.65205018,0.00013698,2]
[404671104,1770407445180,-500.0,0.00013698,2]
[404671105,1770407445191,-500.0,0.00013698,2]
[404671106,1770407445200,-500.0,0.00013698,2]
[404671107,1770407445210,-500.0,0.00013698,2]
[404671108,1770407445220,-500.0,0.00013698,2]
[404671109,1770407445229,-499.73386374,0.00013698,2]
[404671110,1770407445240,-500.0,0.00013698,2]
[404671111,1770407445250,-500.0,0.00013698,2]
[404671112,1770407445260,-500.0,0.00013698,2]
[404671113,1770407445269,-500.0,0.00013698,2]
[404671114,1770407445279,-500.0,0.00013698,2]
[404671115,1770407445289,-500.0,0.00013698,2]
[404671116,1770407445299,-326.5559361,0.00013698,2]
[404671117,1770407445309,-500.0,0.00013698,2]
[404671118,1770407445319,-500.0,0.00013698,2]
[404671119,1770407445329,-500.0,0.00013698,2]
[404671120,1770407445339,-587.5541255,0.00013698,2]
[404671121,1770407445350,-500.0,0.00013698,2]
[404671122,1770407445360,-500.0,0.00013698,2]
[404671123,1770407445370,-500.0,0.00013698,2]
[404671124,1770407445380,-500.0,0.00013698,2]
[404671125,1770407445390,-500.0,0.00013698,2]
[404671126,1770407445401,-500.0,0.00013698,2]
[404671127,1770407445410,-500.0,0.00013698,2]
[404671128,1770407445420,-523.26417397,0.00013698,2]
[404671129,1770407445434,-500.0,0.00013698,2]
[404671130,1770407445444,-353.03533501,0.00013698,2]
[404671131,1770407445454,-7873.41,0.00013699,2]
[404671132,1770407445463,-500.0,0.00013699,2]
[404671133,1770407445473,-1206.7518849,0.00013701,2]
[404671134,1770407445483,-3121.89900729,0.00013746,2]
[404671135,1770407445492,-1000.0,0.00014247,2]
[404671136,1770407445502,-9035.0,0.00014675,2]
[404671137,1770407445512,-168.0,0.00014678,2]
[404671138,1770407445521,-1500.0,0.00014795,2]
[404671139,1770407445531,-3121.89900729,0.00015131,2]
[404671140,1770407445541,-500.0,0.00015248,2]
[404671141,1770407445551,-600.0,0.0001532,2]
[404671142,1770407445560,-280.5,0.0001532,2]
[404671143,1770407445570,-1000.0,0.00015342,2]
[404671144,1770407445581,-1206.7518849,0.00015399,2]
[404671145,1770407445590,-451.33,0.00015699,2]
[404671146,1770407445600,-422.7,0.00015772,2]
[404671147,1770407445609,-166.74215385,0.0001584,2]
[404671148,1770407445618,-2183.0,0.00016142,2]
[404671149,1770407445628,-227.37,0.00016438,2]
[404671150,1770407445638,-3121.89900729,0.00016515,2]
[404671151,1770407445647,-1901.02614896,0.00016993,2]
[404671152,1770407445656,-500.0,0.00017,2]
[404671153,1770407445666,-1206.7518849,0.00017097,2]
[404671154,1770407445675,-1500.0,0.000171,2]
[404671155,1770407445685,-4584.8,0.00017167,2]
[404671156,1770407445694,-204.52168265,0.00017251,2]
[404671157,1770407445704,-200.0,0.00017581,2]
[404671158,1770407445714,-22852.6913216,0.00017635,2]
[404671159,1770407445723,-14456.4168817,0.00017636,2]
[404671160,1770407445733,-2998.4080897,0.0001764,2]
[404671161,1770407445742,-200.0,0.00017641,2]
[404671162,1770407445752,-200.0,0.00017661,2]
[404671163,1770407445762,-1500.0,0.000177,2]
[404671164,1770407445772,-200.0,0.00017721,2]
[404671166,1770407445781,-14897.13390289,0.00017772,2]
[404671168,1770407445800,-4651.54766677,0.00017772,2]
[404671170,1770407445812,-1173.46186496,0.00017772,2]
[404671173,1770407445826,-3173.39959993,0.00017772,2]
[404671175,1770407445837,-521.75981653,0.00017772,2]
[404671181,1770407445885,-1700.12755376,0.00017772,2]
[404671183,1770407445897,-328.23631671,0.00017772,2]
[404671185,1770407445908,-761.0,0.00017772,2]
[404671189,1770407445941,-98.66927553,0.00017772,2]
[404671190,1770407445952,-7041.82899495,0.00017772,2]
[404671191,1770407445962,-774.13,0.00017772,2]
[404671193,1770407445973,-1155.5,0.00017772,2]
[404671202,1770407446055,-1163.58770956,8.307e-05,2]
[404671204,1770407446064,-338.23688541,0.00017772,2]
[404671206,1770407446076,-778.43078015,0.00017772,2]
[404671208,1770407446087,-4598.42845601,0.00017772,2]
[404671210,1770407446099,-514.07074422,0.00017772,2]
[404671212,1770407446110,-19741.7601078,0.00017772,2]
[404671214,1770407446123,-20300.8448,0.00017772,2]
[404671216,1770407446135,-27700.68120898,0.00017772,2]
[404671218,1770407446144,-151.0,0.00017772,2]
[404671220,1770407446154,-151.0,0.00017772,2]
[404671222,1770407446163,-151.0,0.00017772,2]
[404671224,1770407446173,-151.0,0.00017772,2]
[404671226,1770407446182,-151.0,0.00017772,2]
[404671228,1770407446193,-151.357663,0.00017772,2]
[404671230,1770407446203,-2000.0,0.0001783,2]
[404671232,1770407446212,-2000.0,0.0001788,2]
[404671234,1770407446222,-500.0,0.000179,2]
[404671236,1770407446231,-262.05166595,0.000179,2]
[404671238,1770407446240,-3121.89900729,0.000179,2]
[404671244,1770407446392,-3247.95396385,0.000179,2]
[404671245,1770407446402,-2828.0,0.000179,2]
[404671246,1770407446411,-2000.0,0.0001793,2]
[404671247,1770407446420,-500.0,0.0001793,2]
[404671248,1770407446430,-2000.0,0.0001798,2]
[404671249,1770407446439,-2002.16615002,0.00017999,2]
[404671250,1770407446448,-300.0,0.00017999,2]
[404671251,1770407446458,-300.0,0.00017999,2]
[404671252,1770407446468,-300.0,0.00017999,2]
[404671253,1770407446478,-666.0,0.00017999,2]
[404671254,1770407446487,-13219.35466847,0.00018,2]
[404671255,1770407446499,-2688.3650336,0.00018,2]
[404671256,1770407446510,-19615.472205,0.00018,2]
[404671257,1770407446521,-3696.7,0.00018,2]
[404671259,1770407446532,-9888.75,0.00018,2]
[404671260,1770407446555,-151.0,0.00013699,2]
[404671261,1770407446564,-2249.4530701,0.00018,2]
[404671262,1770407446575,-6756.48853091,0.00018,2]
[404671263,1770407490696,360.00000001,0.00035589,120]
[404671264,1770407538701,10000.01,8.184e-05,2]
[404671265,1770407538727,5000.01,8.184e-05,2]
[404671266,1770407538757,5000.01,8.184e-05,2]
[404671267,1770407538783,5000.01,8.184e-05,2]
[404671268,1770407538808,5000.01,8.184e-05,2]
[404671269,1770407538833,5000.01,8.184e-05,2]
[404671270,1770407538859,1694.98004473,8.184e-05,2]
[404671271,1770407538885,3144.93319031,8.184e-05,2]
[404671272,1770407538911,3144.93319031,8.184e-05,2]
[404671273,1770407538938,3144.93319031,8.184e-05,2]
[404671274,1770407547505,-5000.01,8.184e-05,2]
[404671275,1770407547665,-5000.01,8.184e-05,2]
[404671276,1770407547782,-5000.01,8.184e-05,2]
[404671277,1770407547888,-5000.01,8.184e-05,2]
[404671278,1770407548015,-5000.01,8.184e-05,2]
[404671279,1770407550678,-5000.01,8.184e-05,2]
[404671280,1770407550887,-5000.01,8.184e-05,2]
[404671281,1770407551014,-5000.01,8.184e-05,2]
[404671282,1770407551163,-5000.01,8.184e-05,2]
[404671283,1770407551256,-5000.01,8.184e-05,2]
[404671284,1770407551746,392.6318093,8.183e-05,2]
[404671285,1770407551789,159.25413333,8.183e-05,2]
[404671286,1770407551842,195.83290446,8.183e-05,2]
[404671287,1770407551876,378.09704745,8.183e-05,2]
[404671288,1770407553703,-5000.01,8.184e-05,2]
[404671289,1770407553851,-5000.01,8.184e-05,2]
[404671290,1770407553935,-5000.01,8.184e-05,2]
[404671291,1770407554071,-5000.01,8.184e-05,2]
[404671292,1770407554174,209.50933815,8.183e-05,2]
[404671293,1770407554212,500.0,8.183e-05,2]
[404671294,1770407554244,191.87614194,8.183e-05,2]
[404671295,1770407554277,241.16097439,8.183e-05,2]
[404671296,1770407554323,500.0,8.183e-05,2]
[404671297,1770407554358,500.0,8.183e-05,2]
[404671298,1770407554391,500.0,8.183e-05,2]
[404671299,1770407554430,500.0,8.183e-05,2]
[404671300,1770407554464,500.0,8.183e-05,2]
[404671301,1770407554479,-5000.01,8.184e-05,2]
[404671302,1770407554514,500.0,8.183e-05,2]
[404671303,1770407554552,500.0,8.183e-05,2]
[404671304,1770407554586,500.0,8.183e-05,2]
[404671305,1770407554618,500.0,8.183e-05,2]
[404671306,1770407554652,500.0,8.183e-05,2]
[404671307,1770407554686,500.0,8.183e-05,2]
[404671308,1770407554728,500.0,8.183e-05,2]
[404671309,1770407554762,500.0,8.183e-05,2]
[404671310,1770407554795,500.0,8.183e-05,2]
[404671311,1770407554833,500.0,8.183e-05,2]
[404671312,1770407554872,231.64765098,8.183e-05,2]
[404671313,1770407554896,268.35234902,8.183e-05,2]
[404671314,1770407554931,500.0,8.183e-05,2]
[404671315,1770407554966,500.0,8.183e-05,2]
[404671316,1770407555000,500.0,8.183e-05,2]
[404671317,1770407555040,500.0,8.183e-05,2]
[404671318,1770407555080,500.0,8.183e-05,2]
[404671319,1770407555114,500.0,8.183e-05,2]
[404671320,1770407555154,500.0,8.183e-05,2]
[404671321,1770407555193,500.0,8.183e-05,2]
[404671322,1770407555233,500.0,8.183e-05,2]
[404671323,1770407555268,500.0,8.183e-05,2]
[404671324,1770407555301,500.0,8.183e-05,2]
[404671325,1770407555336,500.0,8.183e-05,2]
[404671326,1770407555372,500.0,8.183e-05,2]
[404671327,1770407555406,500.0,8.183e-05,2]
[404671328,1770407555445,500.0,8.183e-05,2]
[404671329,1770407555478,500.0,8.183e-05,2]
[404671330,1770407555512,500.0,8.183e-05,2]
[404671331,1770407555546,500.0,8.183e-05,2]
[404671332,1770407555579,500.0,8.183e-05,2]
[404671333,1770407555611,231.65765098,8.183e-05,2]
[404671334,1770407555633,268.34234902,8.183e-05,2]
[404671335,1770407555669,500.0,8.183e-05,2]
[404671336,1770407555702,500.0,8.183e-05,2]
[404671337,1770407555734,500.0,8.183e-05,2]
[404671338,1770407555767,500.0,8.183e-05,2]
[404671339,1770407555804,500.0,8.183e-05,2]
[404671340,1770407555837,500.0,8.183e-05,2]
[404671341,1770407555870,500.0,8.183e-05,2]
[404671342,1770407555903,500.0,8.183e-05,2]
[404671343,1770407555936,500.0,8.183e-05,2]
[404671344,1770407555969,500.0,8.183e-05,2]
[404671345,1770407556001,500.0,8.183e-05,2]
[404671346,1770407556033,500.0,8.183e-05,2]
[404671347,1770407556079,500.0,8.183e-05,2]
[404671348,1770407556116,500.0,8.183e-05,2]
[404671349,1770407556160,500.0,8.183e-05,2]
[404671350,1770407556195,500.0,8.183e-05,2]
[404671351,1770407556230,500.0,8.183e-05,2]
[404671352,1770407556268,500.0,8.183e-05,2]
[404671353,1770407556301,500.0,8.183e-05,2]
[404671354,1770407556334,231.66765098,8.183e-05,2]
[404671355,1770407556358,268.33234902,8.183e-05,2]
[404671356,1770407556394,500.0,8.183e-05,2]
[404671357,1770407556432,500.0,8.183e-05,2]
[404671358,1770407556792,-5000.01,8.184e-05,2]
[404671359,1770407557309,-5000.01,8.184e-05,2]
[404671360,1770407557383,-5000.01,8.184e-05,2]
[404671361,1770407557508,-5000.01,8.184e-05,2]
[404671362,1770407557614,-5000.01,8.184e-05,2]
[404671363,1770407559727,-5000.01,8.184e-05,2]
[404671364,1770407559851,-5000.01,8.184e-05,2]
[404671365,1770407559976,-5000.01,8.184e-05,2]
[404671366,1770407560092,-5000.01,8.184e-05,2]
[404671367,1770407560187,-5000.01,8.184e-05,2]
[404671368,1770407565771,-5000.01,8.184e-05,2]
[404671369,1770407571846,-5000.01,8.184e-05,2]
[404671370,1770407584975,150.0,8.157e-05,2]
[404671371,1770407585523,150.0,8.157e-05,2]
[404671372,1770407590279,2287.42850818,8.084e-05,2]
[404671373,1770407605402,-5000.01,8.184e-05,2]
[404671374,1770407605616,-5000.01,8.184e-05,2]
[404671375,1770407605732,-5000.01,8.184e-05,2]
[404671376,1770407605846,-5000.01,8.184e-05,2]
[404671377,1770407605996,-5000.01,8.184e-05,2]
[404671378,1770407606103,-5000.01,8.184e-05,2]
[404671379,1770407606207,-5000.01,8.184e-05,2]
[404671380,1770407606335,-5000.01,8.184e-05,2]
[404671381,1770407606477,-5000.01,8.184e-05,2]
[404671382,1770407606699,-5000.01,8.184e-05,2]
[404671383,1770407607401,1200.0,8.183e-05,2]
[404671384,1770407611424,-5000.01,8.184e-05,2]
[404671385,1770407611561,-5000.01,8.184e-05,2]
[404671386,1770407611668,-5000.01,8.184e-05,2]
[404671387,1770407611868,-5000.01,8.184e-05,2]
[404671388,1770407611976,-5000.01,8.184e-05,2]
[404671389,1770407612064,-5000.01,8.184e-05,2]
[404671390,1770407612175,-5000.01,8.184e-05,2]
[404671391,1770407617621,-5000.01,8.184e-05,2]
[404671392,1770407617809,-5000.01,8.184e-05,2]
[404671393,1770407619271,-5000.01,8.184e-05,2]
[404671394,1770407620005,-5000.01,8.184e-05,2]
[404671395,1770407620127,-5000.01,8.184e-05,2]
[404671396,1770407620279,-5000.01,8.184e-05,2]
[404671397,1770407620427,-5000.01,8.184e-05,2]
[404671398,1770407641788,150.0,8.183e-05,2]
[404671399,1770407652240,300.0,8.183e-05,2]
[404671400,1770407664807,5762.58149182,8.174e-05,2]
[404671401,1770407664828,10000.01,8.174e-05,2]
[404671402,1770407664850,10000.01,8.174e-05,2]
[404671403,1770407664876,10000.01,8.174e-05,2]
[404671404,1770407664898,10000.01,8.174e-05,2]
[404671405,1770407664921,2955.69042306,8.174e-05,2]
[404671406,1770407670026,500.0,8.183e-05,2]
[404671407,1770407670068,500.0,8.183e-05,2]
[404671408,1770407670101,500.0,8.183e-05,2]
[404671409,1770407670135,500.0,8.183e-05,2]
[404671410,1770407670168,500.0,8.183e-05,2]
[404671411,1770407670206,500.0,8.183e-05,2]
[404671412,1770407670245,500.0,8.183e-05,2]
[404671413,1770407670279,500.0,8.183e-05,2]
[404671414,1770407670312,500.0,8.183e-05,2]
[404671415,1770407670344,500.0,8.183e-05,2]
[404671416,1770407670377,500.0,8.183e-05,2]
[404671417,1770407670409,500.0,8.183e-05,2]
[404671418,1770407670441,500.0,8.183e-05,2]
[404671419,1770407670473,500.0,8.183e-05,2]
[404671420,1770407670506,44.31957694,8.183e-05,2]
[404671421,1770407670530,455.68042306,8.183e-05,2]
[404671422,1770407670571,500.0,8.183e-05,2]
[404671423,1770407670607,500.0,8.183e-05,2]
[404671424,1770407670639,500.0,8.183e-05,2]
[404671425,1770407670672,500.0,8.183e-05,2]
[404671426,1770407670705,565.63943584,8.183e-05,2]
[404671427,1770407670737,500.0,8.183e-05,2]
[404671428,1770407670774,500.0,8.183e-05,2]
[404671429,1770407670809,500.0,8.183e-05,2]
[404671430,1770407670843,500.0,8.183e-05,2]
[404671431,1770407670875,500.0,8.183e-05,2]
[404671432,1770407670910,500.0,8.183e-05,2]
[404671433,1770407670951,500.0,8.183e-05,2]
[404671434,1770407670986,500.0,8.183e-05,2]
[404671435,1770407671019,500.0,8.183e-05,2]
[404671436,1770407671056,500.0,8.183e-05,2]
[404671437,1770407671088,500.0,8.183e-05,2]
[404671438,1770407701175,1200.0,8.183e-05,2]
[404671439,1770407701289,278.6901411,8.183e-05,2]
[404671440,1770407701314,21.3098589,8.183e-05,2]
[404671442,1770407713926,264.66793322,8.183e-05,2]
[404671443,1770407725492,185.26755325,8.183e-05,2]
[404671444,1770407787190,229.40616332,8.157e-05,2]
[404671445,1770407821714,150.0,8.183e-05,2]
[404671446,1770407830363,300.0,8.183e-05,2]
[404671447,1770407835544,8849.35849131,8.084e-05,2]
[404671448,1770407835570,10000.01,8.084e-05,2]
[404671449,1770407835595,10000.01,8.084e-05,2]
[404671450,1770407835620,10000.01,8.084e-05,2]
[404671451,1770407835644,10000.01,8.084e-05,2]
[404671452,1770407835670,10000.01,8.084e-05,2]
[404671453,1770407835693,10000.01,8.084e-05,2]
[404671454,1770407835718,10000.01,8.084e-05,2]
[404671455,1770407835742,10000.01,8.084e-05,2]
[404671456,1770407835767,10000.01,8.084e-05,2]
[404671457,1770407907413,193.0,8.083e-05,2]
[404671458,1770407912318,274.84226651,8.083e-05,2]
[404671459,1770407914008,500.0,8.083e-05,2]
[404671460,1770407914058,500.0,8.083e-05,2]
[404671461,1770407914111,556.56394359,8.083e-05,2]
[404671462,1770407922728,274.84226651,8.083e-05,2]
[404671463,1770407942755,172.95154928,8.083e-05,2]
[404671464,1770407970440,150.0,8.057e-05,2]
[404671465,1770407971097,2782.43280163,8.072e-05,2]
[404671466,1770407971309,150.0,8.057e-05,2]
[404671467,1770407981090,829.05093178,8.084e-05,2]
[404671468,1770408001245,1200.0,8.083e-05,2]
[404671469,1770408001305,300.0,8.083e-05,2]
[404671470,1770408001483,300.0,8.083e-05,2]
[404671471,1770408001698,300.0,8.083e-05,2]
[404671472,1770408001821,150.0,8.083e-05,2]
[404671473,1770408003887,300.0,8.083e-05,2]
[404671474,1770408004009,218.0,8.084e-05,2]
[404671475,1770408004040,262.0,0.0003561,120]
[404671476,1770408013262,500.0,8.083e-05,2]
[404671477,1770408013578,500.0,8.083e-05,2]
[404671478,1770408013993,500.0,8.083e-05,2]
[404671479,1770408014231,500.0,8.083e-05,2]
[404671480,1770408014698,500.0,8.083e-05,2]
[404671481,1770408015658,372.7324508,8.083e-05,2]
[404671482,1770408015684,127.2675492,8.083e-05,2]
[404671483,1770408016036,500.0,8.083e-05,2]
[404671484,1770408016339,500.0,8.083e-05,2]
[404671485,1770408016675,500.0,8.083e-05,2]
[404671486,1770408023025,500.0,8.083e-05,2]
[404671487,1770408066319,2165.30264258,8.084e-05,2]
[404671488,1770408093266,3477.517,7.923e-05,2]
[404671489,1770408093350,293.304,7.923e-05,2]
[404671490,1770408111344,552.70062118,8.084e-05,2]
[404671491,1770408121231,300.0,8.083e-05,2]
[404671492,1770408126651,297.42501309,8.083e-05,2]
[404671493,1770408126707,500.0,8.083e-05,2]
[404671494,1770408126743,286.49317395,8.083e-05,2]
[404671495,1770408126767,213.50682605,8.083e-05,2]
[404671496,1770408126817,178.18539683,8.083e-05,2]
[404671497,1770408126857,150.93090401,8.083e-05,2]
[404671498,1770408126889,500.0,8.083e-05,2]
[404671499,1770408126924,1094.42453083,8.083e-05,2]
[404671500,1770408126968,500.0,8.083e-05,2]
[404671501,1770408127003,1094.42453083,8.083e-05,2]
[404671502,1770408127047,1094.42453083,8.083e-05,2]
[404671503,1770408127089,1094.42453083,8.083e-05,2]
[404671504,1770408127126,1094.42453083,8.083e-05,2]
[404671505,1770408127166,453.40389257,8.083e-05,2]
[404671506,1770408127224,1094.42453083,8.083e-05,2]
[404671507,1770408127271,1094.42453083,8.083e-05,2]
[404671508,1770408127321,343.01126473,8.083e-05,2]
[404671509,1770408127347,751.4132661,8.083e-05,2]
[404671510,1770408127399,1094.42453083,8.083e-05,2]
[404671511,1770408127460,1094.42453083,8.083e-05,2]
[404671512,1770408127508,1094.42453083,8.083e-05,2]
[404671513,1770408127557,1094.42453083,8.083e-05,2]
[404671514,1770408127603,1094.42453083,8.083e-05,2]
[404671515,1770408127642,1094.42453083,8.083e-05,2]
[404671516,1770408127691,1094.42453083,8.083e-05,2]
[404671517,1770408127744,1094.42453083,8.083e-05,2]
[404671518,1770408127779,493.20048726,8.083e-05,2]
[404671519,1770408127804,601.22404357,8.083e-05,2]
[404671520,1770408127843,1094.42453083,8.083e-05,2]
[404671521,1770408127911,1094.42453083,8.083e-05,2]
[404671522,1770408127955,1094.42453083,8.083e-05,2]
[404671523,1770408128035,1094.42453083,8.083e-05,2]
[404671524,1770408128073,1094.42453083,8.083e-05,2]
[404671525,1770408128111,1094.42453083,8.083e-05,2]
[404671526,1770408128155,1094.42453083,8.083e-05,2]
[404671527,1770408128195,1094.42453083,8.083e-05,2]
[404671528,1770408128257,643.38970979,8.083e-05,2]
[404671529,1770408128285,451.03482104,8.083e-05,2]
[404671530,1770408128335,1094.42453083,8.083e-05,2]
[404671531,1770408128377,1094.42453083,8.083e-05,2]
[404671532,1770408128414,1094.42453083,8.083e-05,2]
[404671533,1770408128465,1094.42453083,8.083e-05,2]
[404671534,1770408128504,1094.42453083,8.083e-05,2]
[404671535,1770408128543,1094.42453083,8.083e-05,2]
[404671536,1770408128591,1094.42453083,8.083e-05,2]
[404671537,1770408128643,1094.42453083,8.083e-05,2]
[404671538,1770408129067,793.57893232,8.083e-05,2]
[404671539,1770408129097,300.84559851,8.083e-05,2]
[404671540,1770408129146,1094.42453083,8.083e-05,2]
[404671541,1770408129185,1094.42453083,8.083e-05,2]
[404671542,1770408129224,1094.42453083,8.083e-05,2]
[404671543,1770408129266,1094.42453083,8.083e-05,2]
[404671544,1770408129302,1094.42453083,8.083e-05,2]
[404671545,1770408129341,1094.42453083,8.083e-05,2]
[404671546,1770408129390,1094.42453083,8.083e-05,2]
[404671547,1770408129426,1094.42453083,8.083e-05,2]
[404671548,1770408129466,943.76815485,8.083e-05,2]
[404671549,1770408129492,150.65637598,8.083e-05,2]
[404671550,1770408129529,1094.42453083,8.083e-05,2]
[404671551,1770408129565,1094.42453083,8.083e-05,2]
[404671552,1770408129607,1094.42453083,8.083e-05,2]
[404671553,1770408129646,1094.42453083,8.083e-05,2]
[404671554,1770408129683,1094.42453083,8.083e-05,2]
[404671555,1770408129734,1094.42453083,8.083e-05,2]
[404671556,1770408129791,1094.42453083,8.083e-05,2]
[404671557,1770408129850,1094.42453083,8.083e-05,2]
[404671558,1770408129888,1093.95737738,8.083e-05,2]
[404671559,1770408129915,0.46715345,8.083e-05,2]
[404671560,1770408129952,1094.42453083,8.083e-05,2]
[404671561,1770408129995,1094.42453083,8.083e-05,2]
[404671562,1770408130039,1094.42453083,8.083e-05,2]
[404671563,1770408130081,1094.42453083,8.083e-05,2]
[404671564,1770408130126,1094.42453083,8.083e-05,2]
[404671565,1770408150221,165.6,6.715e-05,2]
[404671566,1770408150441,165.6,7.835e-05,2]
[404671567,1770408151257,3141.84709485,8.083e-05,2]
[404671568,1770408156039,6526.96290515,7.984e-05,2]
[404671569,1770408156063,10000.01,7.984e-05,2]
[404671570,1770408156088,10000.01,7.984e-05,2]
[404671571,1770408156122,10000.01,7.984e-05,2]
[404671572,1770408156151,10000.01,7.984e-05,2]
[404671573,1770408156175,10000.01,7.984e-05,2]
[404671574,1770408156200,10000.01,7.984e-05,2]
[404671575,1770408156225,10000.01,7.984e-05,2]
[404671576,1770408156249,10000.01,7.984e-05,2]
[404671577,1770408181893,300.0,7.983e-05,2]
[404671578,1770408182444,150.0,7.983e-05,2]
[404671579,1770408183978,300.0,7.983e-05,2]
[404671580,1770408200726,500.0,7.983e-05,2]
[404671581,1770408201139,500.0,7.983e-05,2]
[404671582,1770408201439,500.0,7.983e-05,2]
[404671583,1770408201787,500.0,7.983e-05,2]
[404671584,1770408202112,500.0,7.983e-05,2]
[404671585,1770408202412,500.0,7.983e-05,2]
[404671586,1770408202730,500.0,7.983e-05,2]
[404671587,1770408207772,500.0,7.983e-05,2]
[404671588,1770408208660,150.0,7.957e-05,2]
[404671589,1770408209049,150.0,7.957e-05,2]
[404671590,1770408219933,1043.79,7.86e-05,2]
[404671591,1770408237858,2436.55069835,7.884e-05,2]
[404671592,1770408241703,300.0,7.983e-05,2]
[404671593,1770408248206,966.137872,7.945e-05,2]
[404671594,1770408248306,799.0,0.00035616,120]
[404671595,1770408250346,203.53142965,7.801e-05,2]
[404671596,1770408250372,10000.01,7.801e-05,2]
[404671597,1770408250396,4044.00857035,7.801e-05,2]
[404671598,1770408301113,300.0,7.983e-05,2]
[404671599,1770408301146,1200.0,7.983e-05,2]
[404671600,1770408339322,-1053.59543915,7.984e-05,2]
[404671601,1770408361496,300.0,7.983e-05,2]
[404671602,1770408361781,150.0,7.983e-05,2]
[404671603,1770408379725,500.0,7.983e-05,2]
[404671604,1770408379759,500.0,7.983e-05,2]
[404671605,1770408379795,500.0,7.983e-05,2]
[404671606,1770408379828,500.0,7.983e-05,2]
[404671607,1770408379860,500.0,7.983e-05,2]
[404671608,1770408379894,500.0,7.983e-05,2]
[404671609,1770408379929,500.0,7.983e-05,2]
[404671610,1770408379968,500.0,7.983e-05,2]
[404671611,1770408380013,6.00142965,7.983e-05,2]
[404671612,1770408380036,493.99857035,7.983e-05,2]
[404671613,1770408380069,500.0,7.983e-05,2]
[404671614,1770408380101,500.0,7.983e-05,2]
[404671615,1770408380159,500.0,7.983e-05,2]
[404671616,1770408380231,500.0,7.983e-05,2]
[404671617,1770408380268,500.0,7.983e-05,2]
[404671618,1770408380304,500.0,7.983e-05,2]
[404671619,1770408380337,500.0,7.983e-05,2]
[404671620,1770408380371,500.0,7.983e-05,2]
[404671621,1770408380407,500.0,7.983e-05,2]
[404671622,1770408380443,500.0,7.983e-05,2]
[404671623,1770408380478,500.0,7.983e-05,2]
[404671624,1770408380511,500.0,7.983e-05,2]
[404671625,1770408380546,500.0,7.983e-05,2]
[404671626,1770408380580,500.0,7.983e-05,2]
[404671627,1770408380625,500.0,7.983e-05,2]
[404671628,1770408380660,500.0,7.983e-05,2]
[404671629,1770408380693,500.0,7.983e-05,2]
[404671630,1770408380822,500.0,7.983e-05,2]
[404671631,1770408380862,500.0,7.983e-05,2]
[404671632,1770408380898,6.01142965,7.983e-05,2]
[404671633,1770408380926,493.98857035,7.983e-05,2]
[404671634,1770408380961,500.0,7.983e-05,2]
[404671635,1770408380996,188.76900049,7.983e-05,2]
[404671636,1770408381031,500.0,7.983e-05,2]
[404671637,1770408381065,500.0,7.983e-05,2]
[404671638,1770408381100,500.0,7.983e-05,2]
[404671639,1770408381136,500.0,7.983e-05,2]
[404671640,1770408381173,500.0,7.983e-05,2]
[404671641,1770408381208,500.0,7.983e-05,2]
[404671642,1770408381243,500.0,7.983e-05,2]
[404671643,1770408381279,500.0,7.983e-05,2]
[404671644,1770408381500,500.0,7.983e-05,2]